Cogmind - Beta 10.2 @@@ ROGUE MODE // 2021.01.31 @ 13:13:56 Player: CrossedViper Result: Self-destructed Performance ------------- Evolutions (2) 1000 Regions Visited (6) 1200 Robots Destroyed (28) 140 Value Destroyed (644) 644 Prototype IDs (25) 500 Alien Tech Used (0) 0 Bonus (-423) -423 TOTAL SCORE: 3061 Bonus ------- Entered Garrisons 200 Aligned with FarCom 300 Friendly Fire -923 Cogmind --------- Core Integrity 524/550 Matter 246/300 Energy 100/100 System Corruption 0% Temperature Cool (0) Movement Core (50) Location -8/Garrison Parts ------- > --- POWER (1) -------- (None) > --- PROPULSION (3) --- (None) > --- UTILITY (5) ------ (None) > --- WEAPON (2) ------- (None) > --- INVENTORY (4) ---- (None) Peak State ------------ > --- POWER ------------ Ion Engine > --- PROPULSION ------- Light Treads Light Treads > --- UTILITY ---------- Large Storage Unit High-capacity Storage Unit High-capacity Battery Structural Scanner Light Armor Plating > --- WEAPON ----------- Guided Plasma Cannon Grenade Launcher > --- INVENTORY -------- High-capacity Storage Unit High-capacity Battery Large Matter Pod Experimental Sensor Array Improved Terrain Scan Processor Light Armor Plating Slug Cannon Grenade Launcher YI-UF0's Doublenader Mining Claw [Rating: 19] Favorites ----------- Power Ion Engine Engine Ion Engine Propulsion Light Treads Treads Light Treads Leg Aluminum Leg Utility Propulsion Shielding Device Structural Scanner Storage Large Storage Unit Protection Propulsion Shielding Weapon Assault Rifle Energy Gun EM Pulse Gun Energy Cannon Guided Plasma Cannon Ballistic Gun Assault Rifle Ballistic Cannon Slug Cannon Launcher Grenade Launcher Slashing Weapon Mining Claw Build | -11 -10 -10 -10 -9 -8 -8 ------- Run | Scr Mat Min Exi Min Mat Gar Slots Evolved 4 | . . . . . 4 . Power . | . . . . . . . Propulsion 1 | . . . . . 1 . Utility 3 | . . . . . 3 . Weapon . | . . . . . . . Parts Attached 38 | . 16 1 1 4 6 10 Power 2 | . 2 . . . . . Engine 2 | . 2 . . . . . Core . | . . . . . . . Reactor . | . . . . . . . Propulsion 3 | . 3 . . . . . Treads 2 | . 2 . . . . . Leg 1 | . 1 . . . . . Wheel . | . . . . . . . Hover . | . . . . . . . Flight . | . . . . . . . Utility 21 | . 9 . 1 3 2 6 Device 4 | . 2 . . 1 1 . Storage 9 | . 2 . 1 . 1 5 Processor . | . . . . . . . Hackware . | . . . . . . . Protection 8 | . 5 . . 2 . 1 Artifact . | . . . . . . . Weapon 12 | . 2 1 . 1 4 4 Energy Gun . | . . . . . . . Energy Cannon 3 | . . . . . 1 2 Ballistic Gun 1 | . 1 . . . . . Ballistic Cannon 3 | . . . . . 2 1 Launcher 4 | . 1 . . 1 1 1 Special Weapon . | . . . . . . . Impact Weapon . | . . . . . . . Slashing Weapon 1 | . . 1 . . . . Piercing Weapon . | . . . . . . . Special Melee Weapon . | . . . . . . . Unidentified Prototypes 2 | . . . . 1 . 1 Parts Lost 2 | . 2 . . . . . Power . | . . . . . . . Propulsion . | . . . . . . . Utility . | . . . . . . . Weapon 2 | . 2 . . . . . Highest Loss Streak 2 | . 2 . . . . . Average Slot Usage (%) 96 | . 96 100 100 100 72 85 Engine 13 | . 14 14 14 14 9 9 Treads 23 | . 17 28 28 28 18 18 Leg 3 | . 10 . . . . . Storage 14 | . 14 14 14 14 13 27 Protection 12 | . 12 14 14 13 9 6 Ballistic Gun 11 | . 13 14 14 . . . Launcher 6 | . 11 2 . 14 4 11 Slashing Weapon 8 | . . 11 14 14 9 4 Naked Turns . | . . . . . . . Heaviest Build 82 | 13 29 27 42 45 82 78 Greatest Support 40 | 20 40 40 40 40 40 40 Greatest Overweight (x) 2 | . 2 . 1 1 2 1 Average Overweight (x) . | . . . . 1 1 1 Largest Inventory Capacity 26 | 6 16 10 12 12 20 26 Average Capacity 11 | 6 9 10 11 12 16 17 Most Carried 12 | 5 10 10 12 12 12 11 Average Carried 9 | 5 7 9 11 11 11 8 Final Capacity 20 | 6 10 10 12 12 20 4 Final Carried 12 | 4 10 10 12 12 11 . Class Distribution -------------------- 93% | Mutant 5% | Hauler-Mutant Dominant Class ---------------- Mutant | -10/Materials Mutant | -10/Mines Mutant | -10/Exiles Mutant | -9/Mines Hauler-Mutant | -8/Materials Hauler-Mutant | -8/Garrison Resources | -11 -10 -10 -10 -9 -8 -8 ----------- Run | Scr Mat Min Exi Min Mat Gar Matter Collected 849 | 200 404 50 . 149 46 . Remotely . | . . . . . . . Salvage Created 551 | . 336 111 . 27 77 . Parts 40 | . 23 6 . 5 6 . Haulers Intercepted . | . . . . . . . Recyclers Shooed . | . . . . . . . Parts Field Recycled . | . . . . . . . Retrieved Matter . | . . . . . . . Parts Self-Destructed . | . . . . . . . Prevented . | . . . . . . . Kills | -11 -10 -10 -10 -9 -8 -8 ------- Run | Scr Mat Min Exi Min Mat Gar Combat Hostiles Destroyed 24 | . 17 . . 3 4 . Guns 2 | . 2 . . . . . AOE 22 | . 15 . . 3 4 . Classes Destroyed 6 | . 4 1 . . 1 . Worker 1 | . 1 . . . . . Builder 1 | . . 1 . . . . Watcher 1 | . 1 . . . . . Swarmer 12 | . 6 . . 3 3 . Grunt 11 | . 11 . . . . . Sentry 1 | . . . . . 1 . Best Kill Streak 4 | . 4 1 . 3 3 . Combat Bots Only 3 | . 3 . . 3 3 . Max Kills in Single Turn 3 | . 2 1 . 3 2 . Gunslinging . | . . . . . . . Exploded 3 | . 2 . . 3 2 . Melee . | . . . . . . . Uniques/NPCs Destroyed 1 | . . 1 . . . . YI-UF0 (-10/Mines) Combat | -11 -10 -10 -10 -9 -8 -8 -------- Run | Scr Mat Min Exi Min Mat Gar Damage Taken 751 | . 562 . . 6 57 126 Core 104 | . 78 . . . . 26 Absorbed by Shields . | . . . . . . . Core Remaining (%) 84 | 100 . . . 68 . . Volleys Fired 36 | . 29 . . 1 5 1 Largest 2 | . 2 . . 1 1 1 Hottest 120 | . 90 . . 30 120 120 Shots Fired 38 | . 31 . . 1 5 1 Gun 16 | . 16 . . . . . Cannon 3 | . . . . . 2 1 Launcher 19 | . 15 . . 1 3 . Special . | . . . . . . . Kinetic 13 | . 12 . . . 1 . Thermal 4 | . 2 . . . 1 1 Explosive 19 | . 15 . . 1 3 . Electromagnetic 2 | . 2 . . . . . Robot Hit Streak 10 | . 10 . . . 5 . Robot Miss Streak 1 | . 1 . . . . . Penetration Max . | . . . . . . . Secondary Targets . | . . . . . . . Shots Hit Robots 25 | . 22 2 . . 1 . Core Hits 38 | . 28 1 . 3 6 . Critical Hits . | . . . . . . . Critical Kills . | . . . . . . . Critical Parts Destroyed . | . . . . . . . Melee Attacks 2 | . . 2 . . . . Impact . | . . . . . . . Slashing 2 | . . 2 . . . . Piercing . | . . . . . . . Sneak Attacks 2 | . . 2 . . . . Combat Hostiles . | . . . . . . . Follow-up Attacks . | . . . . . . . Damage Inflicted 1807 | . 1260 147 . 147 253 . Guns 186 | . 186 . . . . . Cannons . | . . . . . . . Explosions 1456 | . 1073 . . 130 253 . Melee 141 | . . 141 . . . . Ramming 24 | . 1 6 . 17 . . Kinetic 137 | . 137 . . . . . Thermal 128 | . 128 . . . . . Explosive 1310 | . 969 . . 130 211 . Electromagnetic 67 | . 25 . . . 42 . Impact . | . . . . . . . Slashing 141 | . . 141 . . . . Piercing . | . . . . . . . Highest Corruption . | . . . . . . . Average Corruption . | . . . . . . . Corruption Purged . | . . . . . . . Overload Shots . | . . . . . . . Overflow Damage 105 | . 83 . . . 22 . Projectiles . | . . . . . . . Explosions 105 | . 83 . . . 22 . Melee . | . . . . . . . Knockbacks . | . . . . . . . Impact . | . . . . . . . Kinetic . | . . . . . . . Secondary . | . . . . . . . Self-Inflicted Damage 320 | . 301 . . . 19 . Shots 10 | . 9 . . . 1 . Rammed 4 | . 1 1 . 2 . . Targets Rammed 5 | . 1 2 . 2 . . Kicked . | . . . . . . . Crushed 1 | . . 1 . . . . Highest Temperature 90 | . 90 . . . 74 74 Average Temperature 36 | . 39 . . . 28 40 Received Heat Transfer 177 | . 114 . . . 9 54 Siege Activations . | . . . . . . . Robots Corrupted . | . . . . . . . Combat Hostiles . | . . . . . . . Parts Fried . | . . . . . . . Impact Corruptions . | . . . . . . . Robots Melted . | . . . . . . . Combat Hostiles . | . . . . . . . Parts Melted . | . . . . . . . Heat Transferred 174 | . 174 . . . . . Parts Sabotaged . | . . . . . . . Parts Stolen . | . . . . . . . Parts Stripped . | . . . . . . . Power Chain Reactions 1 | . 1 . . . . . Missiles Intercepted . | . . . . . . . Alert | -11 -10 -10 -10 -9 -8 -8 ------- Run | Scr Mat Min Exi Min Mat Gar Peak Influence 341 | . 341 74 . 85 222 159 Initial 144 | . . 74 . . 33 144 Average 129 | . 195 52 . 83 110 153 Maximum Alert Level 1 | . 1 . . . 1 . Low Security (%) 77 | 100 55 100 . 100 78 100 Level 1 22 | . 44 . . . 21 . Level 2 . | . . . . . . . Level 3 . | . . . . . . . Level 4 . | . . . . . . . Level 5 . | . . . . . . . High Security . | . . . . . . . Max Security . | . . . . . . . Squads Dispatched 4 | . 4 . . . . . Investigation 3 | . 3 . . . . . Extermination . | . . . . . . . Reinforcement 1 | . 1 . . . . . Assault . | . . . . . . . Garrison . | . . . . . . . Intercept . | . . . . . . . Construction Impeded . | . . . . . . . Haulers Reinforced . | . . . . . . . Stealth | -11 -10 -10 -10 -9 -8 -8 --------- Run | Scr Mat Min Exi Min Mat Gar Distress Signals . | . . . . . . . Communications Jammed . | . . . . . . . Distress Signals . | . . . . . . . Times Spotted 36 | . 23 4 . 3 5 1 Peak Tracking Total 11 | . 3 11 . 3 4 1 Tactical Retreats 2 | . . 1 . . 1 . Traps | -11 -10 -10 -10 -9 -8 -8 ------- Run | Scr Mat Min Exi Min Mat Gar Traps Triggered 2 | . 2 . . . . . Indirectly . | . . . . . . . Trap Hack Attempts . | . . . . . . . Triggered . | . . . . . . . Disarmed . | . . . . . . . Reprogrammed . | . . . . . . . Reused . | . . . . . . . Traps Extracted . | . . . . . . . Installed . | . . . . . . . Triggered . | . . . . . . . Machines | -11 -10 -10 -10 -9 -8 -8 ---------- Run | Scr Mat Min Exi Min Mat Gar Machines Disabled 7 | . 3 . . 1 2 1 Max in Single Turn 1 | . 1 . . 1 1 1 Machines Sabotaged . | . . . . . . . Garrisons Compromised . | . . . . . . . Overloaded Fab Kills . | . . . . . . . Fab Network Shutdowns . | . . . . . . . Hacking | -11 -10 -10 -10 -9 -8 -8 --------- Run | Scr Mat Min Exi Min Mat Gar Machines Accessed 8 | . 5 . 2 . 1 . Terminals 3 | . 3 . . . . . Fabricators . | . . . . . . . Repair Stations . | . . . . . . . Recycling Units 2 | . 2 . . . . . Scanalyzers . | . . . . . . . Garrison Access 1 | . . . . . 1 . Total Hacks 11 | . 8 . 2 . 1 . Successful 7 | . 4 . 2 . 1 . Failed 3 | . 3 . . . . . Catastrophic . | . . . . . . . Database Lockouts 1 | . 1 . . . . . Manual 10 | . 9 . 1 . . . Terminals 6 | . 6 . . . . . Fabricators . | . . . . . . . Repair Stations . | . . . . . . . Recycling Units 2 | . 2 . . . . . Scanalyzers . | . . . . . . . Garrison Access 1 | . . . . . 1 . Terminal Hacks 4 | . 2 . 2 . . . Record 1 | . . . 1 . . . Robot Analysis 1 | . 1 . . . . . Branch Access Points 1 | . 1 . . . . . EX-Prototype ID Bank 1 | . . . 1 . . . Fabricator Hacks . | . . . . . . . Repair Station Hacks . | . . . . . . . Recycling Unit Hacks . | . . . . . . . Scanalyzer . | . . . . . . . Garrison Access Hacks 1 | . . . . . 1 . Unlock Access 1 | . . . . . 1 . Unauthorized Hacks 2 | . 2 . . . . . Terminals . | . . . . . . . Fabricators . | . . . . . . . Repair Stations . | . . . . . . . Recycling Units 2 | . 2 . . . . . Tunnel 2 | . 2 . . . . . Scanalyzers . | . . . . . . . Garrison Access . | . . . . . . . Data Cores Recovered . | . . . . . . . Used . | . . . . . . . Hacking Detections 3 | . 2 . . . 1 . Full Trace Events 1 | . 1 . . . . . Feedback Events . | . . . . . . . Feedback Blocked . | . . . . . . . Robot Schematics Acquired . | . . . . . . . Robots Built . | . . . . . . . Matter . | . . . . . . . Time . | . . . . . . . Total Robot Build Rating . | . . . . . . . Part Schematics Acquired . | . . . . . . . Parts Built . | . . . . . . . Matter . | . . . . . . . Time . | . . . . . . . Total Part Build Rating . | . . . . . . . Parts Repaired . | . . . . . . . Time . | . . . . . . . Parts Recycled . | . . . . . . . Recycled Matter . | . . . . . . . Retrieved Matter . | . . . . . . . Retrieved Components . | . . . . . . . Parts Scanalyzed . | . . . . . . . Part Schematics Acquired . | . . . . . . . Parts Damaged . | . . . . . . . Bothacking | -11 -10 -10 -10 -9 -8 -8 ------------ Run | Scr Mat Min Exi Min Mat Gar Used RIF Installer . | . . . . . . . Robots Hacked . | . . . . . . . Non-combat . | . . . . . . . Combat . | . . . . . . . Robot Hacks Applied . | . . . . . . . Relay Couplers Released . | . . . . . . . Robots Rewired . | . . . . . . . Allies Hacked . | . . . . . . . Hacks Repelled . | . . . . . . . Allies | -11 -10 -10 -10 -9 -8 -8 -------- Run | Scr Mat Min Exi Min Mat Gar Total Allies . | . . . . . . . Largest Group . | . . . . . . . Highest-Rated Group . | . . . . . . . Highest-Rated Ally . | . . . . . . . Total Orders . | . . . . . . . Ally Attacks . | . . . . . . . Total Damage . | . . . . . . . Kills . | . . . . . . . Allies Corrupted . | . . . . . . . Allies Melted . | . . . . . . . Intel | -11 -10 -10 -10 -9 -8 -8 ------- Run | Scr Mat Min Exi Min Mat Gar Robot Analysis Total 1 | . 1 . . . . . Derelict Logs Recovered 3 | . . 2 . 1 . . Drone Launches . | . . . . . . . Drone Recoveries . | . . . . . . . Exploration | -11 -10 -10 -10 -9 -8 -8 ------------- Run | Scr Mat Min Exi Min Mat Gar Turns Passed 2715 | 1 910 561 699 300 203 41 Spaces Moved 1525 | 1 519 343 397 159 98 8 Core . | . . . . . . . Treads 1339 | . 334 343 397 159 98 8 Legs 186 | 1 185 . . . . . Wheels . | . . . . . . . Hover . | . . . . . . . Flight . | . . . . . . . Fastest Speed 120 | 120 120 160 160 180 180 180 Average Speed 165 | 120 154 160 174 180 186 180 Slowest Speed 200 | 120 180 160 180 180 200 180 Overloaded Moves . | . . . . . . . Propulsion Burnouts . | . . . . . . . Robots Hopped . | . . . . . . . Cave-ins Triggered . | . . . . . . . Exploration Rate (%) 36 | 2 68 73 69 33 8 5 Regions Visited 6 Branch Regions 3 Pre-discovered Areas 3 | . 2 . 1 . . . Known Exits Taken 2 | . 1 . . . 1 . Unknown Exits Taken 4 | 1 . 1 1 1 . . Scrap Searched 2 | . . . . 2 . . Spaces Dug 24 | . 4 . . 5 15 . Terrain Destroyed 164 | . 135 . . 5 24 . Melee . | . . . . . . . Projectile 1 | . . . . . 1 . AOE 163 | . 135 . . 5 23 . Terrain Rammed . | . . . . . . . Walls Destroyed . | . . . . . . . Machines Disabled . | . . . . . . . Actions | -11 -10 -10 -10 -9 -8 -8 --------- Run | Scr Mat Min Exi Min Mat Gar Total 1672 | 2 592 351 404 172 112 39 Wait 14 | . 11 . . . 3 . Move 1519 | . 518 342 396 158 97 8 Hop . | . . . . . . . Pick Up 21 | . 11 2 4 3 1 . Fast Attach 6 | . 5 . . 1 . . Attach 9 | . 5 . . 1 2 1 Detach 1 | . 1 . . . . . Swap 23 | . 6 1 1 2 4 9 Drop 36 | 2 5 2 3 4 . 20 Fire 36 | . 29 . . 1 5 1 Melee 2 | . . 2 . . . . Ram . | . . . . . . . Kick . | . . . . . . . Crush 5 | . 1 2 . 2 . . Escape Stasis . | . . . . . . . Rewire . | . . . . . . . Trap . | . . . . . . . Miscellaneous . | . . . . . . . Route ------- -11/Scrapyard -10/Materials (discovered 3 exits: [*Mat x2] / *Min) -10/Mines (discovered 3 exits: [*Mat x2] / *Exi) -10/Exiles -9/Mines -8/Materials -8/Garrison History --------- Turn | Location | Event 2 | -11/Scrapyard | Discovered new exit (range 0) 2 | -11/Scrapyard | Entered Materials 166 | -10/Materials | Central database locked down 181 | -10/Materials | Identified exit to Mines 241 | -10/Materials | Discovered new exit (range 15) 308 | -10/Materials | Build established: Mutant 718 | -10/Materials | Discovered new exit (range 10) 912 | -10/Materials | Entered Mines 1004 | -10/Mines | YI-UF0 nonchalantly dropped a Grenade Launcher on the ground 1010 | -10/Mines | Destroyed YI-UF0 1015 | -10/Mines | Found Prototype Launcher 1091 | -10/Mines | Discovered new exit (range 10) 1291 | -10/Mines | Learned Materials security intel 1296 | -10/Mines | Deemed a non-threat by the Exiles lab entrance 1296 | -10/Mines | Discovered new exit (range 5) 1374 | -10/Mines | Discovered new exit (range 6) 1387 | -10/Mines | Learned Materials security intel 1422 | -10/Mines | Assembled infested the area 1473 | -10/Mines | Entered Exiles 1517 | -10/Exiles | Met 8R-AWN 1539 | -10/Exiles | Met EX-HEX 1600 | -10/Exiles | Met EX-DEC 1698 | -10/Exiles | Learned location of Zion (-7) 1879 | -10/Exiles | Met EX-BIN 1904 | -10/Exiles | Aligned with FarCom system 1906 | -10/Exiles | Given EX-Vault access code 1947 | -10/Exiles | Opened EX-Vault 1996 | -10/Exiles | Found Gui. Plasma Cannon 2035 | -10/Exiles | Warned to stay clear of 0b10 Research branches 2150 | -10/Exiles | Discovered new exit (range 10) 2172 | -10/Exiles | Left Exiles lab with Gui. Plasma Cannon 2172 | -10/Exiles | Entered Mines 2230 | -9/Mines | A weapon hastily lodged in a ceiling crevice suddenly fell to the ground 2297 | -9/Mines | Discovered new exit (range 6) 2408 | -9/Mines | Found a damaged Exp. Sensor Array with a note attached 2415 | -9/Mines | Found Prototype Device 2415 | -9/Mines | Identified Exp. Sensor Array 2472 | -9/Mines | Entered Materials 2472 | -8/Materials | Evolved 4 slots: Propulsion x1, Utility x3 2492 | -8/Materials | Identified exit to Garrison 2675 | -8/Materials | Entered Garrison 2691 | -8/Garrison | Triggered checkpoint 2700 | -8/Garrison | Identified YI-UF0's Doublenader 2716 | -8/Garrison | Self-destructed Last Messages --------------- 02700_ Identified YI-UF0's Doublenader. 02706_ Dropped Slug Cannon. 02707_ Dropped Gui. Plasma Cannon. 02707_ Dropped Lgt. Armor Plating. 02708_ Dropped Exp. Sensor Array. 02708_ Dropped Structural Scanner. 02709_ Dropped Hcp. Battery. 02709_ Dropped Hcp. Storage Unit. 02710_ Dropped Imp. Terrain Scan Processor. 02710_ Dropped Grenade Launcher. 02711_ Dropped Mining Claw. 02711_ Dropped Grenade Launcher. 02712_ Dropped YI-UF0's Doublenader. 02712_ Dropped Lrg. Storage Unit. 02713_ Dropped Hcp. Battery. 02713_ Dropped Lgt. Armor Plating. 02714_ Dropped Hcp. Storage Unit. 02714_ Dropped Lrg. Matter Pod. 02715_ Dropped Lgt. Treads. 02716_ Dropped Ion Engine. Map ----- +----------------------------------------------------+ | ????????????????????????????????????? | | ????????????????????????????????????? | | ????????????????????????????????????? | | ????????????????????????????????????? | | ????????????????????????????????????? | | ????????????????????????????????????? | | ????????????????????????????????????? | | ????????????????????????????????????? | | ????????????????????????????????????? | | ????????????????????????????????????? | | ????????????????????????????????????? | | ????????????????????????????????????? | | ????????????????????????????????????? | | ????????????????????????????????????? | | ????????????????????????????????????? | | ????????????????????????????????????? | | ????????????????????????????????????? | | ????????????????????????????????????? | | ????????????????????????????????????? | | ????????????????????????????????????? | | ????????????????????????????????????? | | ????????????????????????????????????? | | ????????????????????????????????????? | | ????????????????????????????????????? | | ??????????#############"""#####?????? | | ??????????#!@!!!= Y ????? | | ??????????#!]!]! ????? | | ??????????#/!]]* ????? | | ??????????#!!!###############???????? | | ??????????# = #?????????????????????? | | ??????????#####?????????????????????? | | ????????????????????????????????????? | | ????????????????????????????????????? | | ????????????????????????????????????? | | ????????????????????????????????????? | | ????????????????????????????????????? | | ????????????????????????????????????? | | ????????????????????????????????????? | | ????????????????????????????????????? | | ????????????????????????????????????? | | ????????????????????????????????????? | | ????????????????????????????????????? | | ????????????????????????????????????? | | ????????????????????????????????????? | | ????????????????????????????????????? | | ????????????????????????????????????? | | ????????????????????????????????????? | | ????????????????????????????????????? | | ????????????????????????????????????? | | ????????????????????????????????????? | +----------------------------------------------------+ Best States ------------- Heat Dissipation 31 Energy Generation 10 Energy Capacity 1050 Matter Stores 300 Matter Capacity 450 Sight Range 16 Robot Scan Range 30 Terrain Scan Density 10 Armor Coverage 150 Propulsion Shielding 33 Evasion (%) 40 Recoil Reduction 2 Item Schematics ----------------- None Robot Schematics ------------------ None Fabricated ------------ Nothing Alien Tech Used ----------------- None Achievements -------------- None Challenges ------------ None Game ------ Seed BombardmentLegDevice Manual? 0 Play Time 00:21:32 Cumulative 280.8 hours Start 2021.01.31 @ 11:19:08 End 2021.01.31 @ 13:13:56 Sessions 1 Manual Loads 0 Difficulty Rogue Special Mode None Game No. 238 Rogue 231 Adventurer 0 Explorer 7 Win Type - Total 9 Types 3/0/6/0/0/0/0/0/0 Lore% 74 Gallery% 91 Achievement% 71 Wizard Run 0 Options --------- ASCII 0 Keyboard 0 Movement Numpad Keybinds 0 Fullscreen 1 Font 18/X11 Map View 76x50 Tactical HUD 1 Map Filters NONE Filters NONE Steam 1 RUN: 92d9ec9d-0c48-477c-a378-917170dcac1f